[Event "*** Titled Tuesday Blitz"]
[Site "Chess.com"]
[Date "2021.04.06"]
[Round "1"]
[White "ApacheSVD"]
[Black "superchess02"]
[Result "0-1"]
[WhiteElo "2428"]
[BlackElo "2807"]
[TimeControl "180+1"]
[EndTime "10:09:23 PDT"]
[Termination "superchess02 won by checkmate"]

1. e4 {[%clk 0:02:53.3]} 1... e5 {[%clk 0:02:58.7]} 2. Nf3 {[%clk 0:02:53.4]}
2... Nc6 {[%clk 0:02:58.3]} 3. Nc3 {[%clk 0:02:51.6]} 3... Nf6 {[%clk
0:02:57.7]} 4. a3 {[%clk 0:02:52.2]} 4... d6 {[%clk 0:02:56.3]} 5. d4 {[%clk
0:02:51.1]} 5... Bg4 {[%clk 0:02:45.9]} 6. Bb5 {[%clk 0:02:46.7]} 6... exd4
{[%clk 0:02:41.6]} 7. Qxd4 {[%clk 0:02:44]} 7... Qd7 {[%clk 0:02:40]} 8. Bxc6
{[%clk 0:02:27.2]} 8... Qxc6 {[%clk 0:02:40.9]} 9. Bg5 {[%clk 0:02:27.5]} 9...
Be7 {[%clk 0:02:36.4]} 10. Nd5 {[%clk 0:02:24.4]} 10... Bxf3 {[%clk 0:01:56.4]}
11. Bxf6 {[%clk 0:02:15]} 11... Bxg2 {[%clk 0:01:33.6]} 12. Bxe7 {[%clk
0:02:04]} 12... Qxc2 {[%clk 0:01:14]} 13. Qxg7 {[%clk 0:01:29.9]} 13... Qxe4+
{[%clk 0:01:11.2]} 14. Ne3 {[%clk 0:01:29.9]} 14... Kxe7 {[%clk 0:00:47.5]} 15.
Qxg2 {[%clk 0:01:28.8]} 15... Qxg2 {[%clk 0:00:48.4]} 16. Nxg2 {[%clk
0:01:29.4]} 16... d5 {[%clk 0:00:47.8]} 17. O-O-O {[%clk 0:01:26.7]} 17... Kd6
{[%clk 0:00:47.5]} 18. Rhe1 {[%clk 0:01:21.4]} 18... c6 {[%clk 0:00:45.1]} 19.
Ne3 {[%clk 0:01:20.1]} 19... Rae8 {[%clk 0:00:42.4]} 20. Nf5+ {[%clk 0:01:16.8]}
20... Kd7 {[%clk 0:00:42.8]} 21. Kd2 {[%clk 0:01:15.6]} 21... Rhg8 {[%clk
0:00:42.2]} 22. Ng3 {[%clk 0:01:11.3]} 22... Re6 {[%clk 0:00:41]} 23. Re3 {[%clk
0:01:08.4]} 23... Rh6 {[%clk 0:00:35.2]} 24. Rde1 {[%clk 0:01:02.9]} 24... Rxh2
{[%clk 0:00:35.3]} 25. Re7+ {[%clk 0:01:03.2]} 25... Kd6 {[%clk 0:00:35.4]} 26.
R1e2 {[%clk 0:00:59.7]} 26... Rxf2 {[%clk 0:00:27.2]} 27. Rxf2 {[%clk
0:00:28.1]} 27... Kxe7 {[%clk 0:00:26.3]} 28. Nf5+ {[%clk 0:00:28.6]} 28... Ke6
{[%clk 0:00:25.9]} 29. Nd4+ {[%clk 0:00:26.5]} 29... Ke5 {[%clk 0:00:24.7]} 30.
Nf3+ {[%clk 0:00:24.6]} 30... Kd6 {[%clk 0:00:24.5]} 31. Nd4 {[%clk 0:00:24.3]}
31... c5 {[%clk 0:00:21.5]} 32. Nf5+ {[%clk 0:00:19.9]} 32... Ke6 {[%clk
0:00:20.4]} 33. Ne3 {[%clk 0:00:15.1]} 33... d4 {[%clk 0:00:20.2]} 34. Nf5
{[%clk 0:00:06.1]} 34... b5 {[%clk 0:00:18.9]} 35. Nh4 {[%clk 0:00:03.9]} 35...
Rg4 {[%clk 0:00:18.3]} 36. Nf3 {[%clk 0:00:03.8]} 36... c4 {[%clk 0:00:18.3]}
37. Rh2 {[%clk 0:00:03.6]} 37... Rf4 {[%clk 0:00:16]} 38. Ng5+ {[%clk
0:00:02.7]} 38... Kd5 {[%clk 0:00:16]} 39. Nxh7 {[%clk 0:00:01.9]} 39... f6
{[%clk 0:00:15.7]} 40. Nf8 {[%clk 0:00:02]} 40... a5 {[%clk 0:00:15]} 41. Ng6
{[%clk 0:00:02.1]} 41... Rf3 {[%clk 0:00:14.3]} 42. Ne7+ {[%clk 0:00:02.2]}
42... Kd6 {[%clk 0:00:12.6]} 43. Nc8+ {[%clk 0:00:01.5]} 43... Kc7 {[%clk
0:00:12.7]} 44. Ne7 {[%clk 0:00:01.8]} 44... Kd7 {[%clk 0:00:11.8]} 45. Nd5
{[%clk 0:00:01.6]} 45... Kd6 {[%clk 0:00:12.4]} 46. Nb6 {[%clk 0:00:01.6]} 46...
Kc6 {[%clk 0:00:12.4]} 47. Nc8 {[%clk 0:00:01.9]} 47... Rb3 {[%clk 0:00:11.4]}
48. Kc2 {[%clk 0:00:01.8]} 48... d3+ {[%clk 0:00:11.6]} 49. Kc1 {[%clk
0:00:02.5]} 49... c3 {[%clk 0:00:11.8]} 50. bxc3 {[%clk 0:00:03.1]} 50... Rxc3+
{[%clk 0:00:12.3]} 51. Kd1 {[%clk 0:00:03.7]} 51... Rxa3 {[%clk 0:00:12.3]} 52.
Rh6 {[%clk 0:00:03.9]} 52... Kc5 {[%clk 0:00:10.1]} 53. Rxf6 {[%clk 0:00:03.6]}
53... Kd4 {[%clk 0:00:10.7]} 54. Nb6 {[%clk 0:00:02.9]} 54... b4 {[%clk
0:00:09.8]} 55. Rf5 {[%clk 0:00:02.6]} 55... Ra1+ {[%clk 0:00:09.3]} 56. Kd2
{[%clk 0:00:02.8]} 56... Ra2+ {[%clk 0:00:09.9]} 57. Kd1 {[%clk 0:00:03.2]}
57... Kc3 {[%clk 0:00:07.8]} 58. Rc5+ {[%clk 0:00:03.4]} 58... Kb3 {[%clk
0:00:08.2]} 59. Nd5 {[%clk 0:00:01.8]} 59... Rh2 {[%clk 0:00:07.6]} 60. Nf4
{[%clk 0:00:01.6]} 60... a4 {[%clk 0:00:06.2]} 61. Nxd3 {[%clk 0:00:01.9]} 61...
a3 {[%clk 0:00:06.7]} 62. Nc1+ {[%clk 0:00:02.6]} 62... Ka4 {[%clk 0:00:06.6]}
63. Rc8 {[%clk 0:00:02.7]} 63... Rh1+ {[%clk 0:00:06.8]} 64. Kc2 {[%clk
0:00:02.8]} 64... Rh2+ {[%clk 0:00:07]} 65. Kd1 {[%clk 0:00:03.4]} 65... Kb5
{[%clk 0:00:05.5]} 66. Rb8+ {[%clk 0:00:03.3]} 66... Kc4 {[%clk 0:00:05.7]} 67.
Rc8+ {[%clk 0:00:03.6]} 67... Kd4 {[%clk 0:00:06.2]} 68. Nb3+ {[%clk 0:00:02.8]}
68... Kd3 {[%clk 0:00:05.8]} 69. Nc1+ {[%clk 0:00:03.4]} 69... Kd4 {[%clk
0:00:05.4]} 70. Nb3+ {[%clk 0:00:03.9]} 70... Ke3 {[%clk 0:00:06]} 71. Rc4
{[%clk 0:00:03.6]} 71... Rh1+ {[%clk 0:00:05.9]} 72. Kc2 {[%clk 0:00:03.8]}
72... Rh2+ {[%clk 0:00:06.6]} 73. Kb1 {[%clk 0:00:03.8]} 73... Rb2+ {[%clk
0:00:07]} 74. Kc1 {[%clk 0:00:02.4]} 74... Rxb3 {[%clk 0:00:07.4]} 75. Rc8
{[%clk 0:00:02.8]} 75... Rc3+ {[%clk 0:00:06.8]} 76. Rxc3+ {[%clk 0:00:02.2]}
76... bxc3 {[%clk 0:00:07.7]} 77. Kc2 {[%clk 0:00:02.9]} 77... Kd4 {[%clk
0:00:07.9]} 78. Kb3 {[%clk 0:00:03.2]} 78... Kd3 {[%clk 0:00:08.8]} 79. Kxa3
{[%clk 0:00:03.8]} 79... c2 {[%clk 0:00:09.3]} 80. Kb2 {[%clk 0:00:04.3]} 80...
Kd2 {[%clk 0:00:10.2]} 81. Ka2 {[%clk 0:00:04.1]} 81... c1=Q {[%clk 0:00:11.1]}
82. Kb3 {[%clk 0:00:04.7]} 82... Qc3+ {[%clk 0:00:11.2]} 83. Ka2 {[%clk
0:00:05.1]} 83... Qb4 {[%clk 0:00:11.2]} 84. Ka1 {[%clk 0:00:05.7]} 84... Kc2
{[%clk 0:00:11.8]} 85. Ka2 {[%clk 0:00:05.7]} 85... Qa4# {[%clk 0:00:12.7]} 0-1

[Event "*** Titled Tuesday Blitz"]
[Site "Chess.com"]
[Date "2021.04.06"]
[Round "1"]
[White "VinzentSpitzl"]
[Black "jacky72"]
[Result "0-1"]
[WhiteElo "2398"]
[BlackElo "2723"]
[TimeControl "180+1"]
[EndTime "10:09:29 PDT"]
[Termination "jacky72 won on time"]

1. e4 {[%clk 0:02:59.6]} 1... e5 {[%clk 0:02:57.8]} 2. Nf3 {[%clk 0:02:59.8]}
2... Nc6 {[%clk 0:02:58.2]} 3. Bc4 {[%clk 0:02:59.9]} 3... Bc5 {[%clk
0:02:58.3]} 4. c3 {[%clk 0:02:56.9]} 4... Nf6 {[%clk 0:02:58.4]} 5. d4 {[%clk
0:02:55]} 5... exd4 {[%clk 0:02:59.3]} 6. cxd4 {[%clk 0:02:55.8]} 6... Bb4+
{[%clk 0:02:59.6]} 7. Nc3 {[%clk 0:02:56.4]} 7... Nxe4 {[%clk 0:03:00]} 8. O-O
{[%clk 0:02:56.2]} 8... Bxc3 {[%clk 0:03:00.6]} 9. bxc3 {[%clk 0:02:56.5]} 9...
d5 {[%clk 0:02:58.6]} 10. Bb5 {[%clk 0:02:41.9]} 10... O-O {[%clk 0:02:56.7]}
11. Bxc6 {[%clk 0:02:30.6]} 11... bxc6 {[%clk 0:02:54.5]} 12. Qb3 {[%clk
0:02:23]} 12... f6 {[%clk 0:02:49.6]} 13. Ba3 {[%clk 0:02:19.8]} 13... Re8
{[%clk 0:02:48.4]} 14. c4 {[%clk 0:02:15.9]} 14... Bg4 {[%clk 0:02:46.7]} 15.
cxd5 {[%clk 0:02:08.9]} 15... cxd5 {[%clk 0:02:40.9]} 16. Rfc1 {[%clk
0:02:01.3]} 16... Rb8 {[%clk 0:02:37.4]} 17. Qd3 {[%clk 0:02:00.8]} 17... Qd7
{[%clk 0:02:22.9]} 18. h3 {[%clk 0:01:56.9]} 18... Bf5 {[%clk 0:02:22.7]} 19.
Qa6 {[%clk 0:01:46.3]} 19... Bxh3 {[%clk 0:02:19.2]} 20. gxh3 {[%clk 0:01:41.6]}
20... Qxh3 {[%clk 0:02:19.1]} 21. Nh2 {[%clk 0:01:37.1]} 21... Nxf2 {[%clk
0:02:08]} 22. Qf1 {[%clk 0:01:35.9]} 22... Qxa3 {[%clk 0:02:03.7]} 23. Qxf2
{[%clk 0:01:33]} 23... Rb2 {[%clk 0:02:04.3]} 24. Qf3 {[%clk 0:01:30.7]} 24...
Qxf3 {[%clk 0:01:49.6]} 25. Nxf3 {[%clk 0:01:30.5]} 25... Re3 {[%clk 0:01:49.8]}
26. Rf1 {[%clk 0:01:19.3]} 26... g5 {[%clk 0:01:50.2]} 27. Rae1 {[%clk
0:01:15.7]} 27... Rxe1 {[%clk 0:01:50.1]} 28. Rxe1 {[%clk 0:01:16.6]} 28... Kf7
{[%clk 0:01:50.1]} 29. Rc1 {[%clk 0:01:15]} 29... Rxa2 {[%clk 0:01:48.2]} 30.
Rxc7+ {[%clk 0:01:09.6]} 30... Kg6 {[%clk 0:01:48.4]} 31. Rd7 {[%clk 0:01:06.3]}
31... g4 {[%clk 0:01:46.9]} 32. Nh4+ {[%clk 0:00:57.6]} 32... Kg5 {[%clk
0:01:47.1]} 33. Rxh7 {[%clk 0:00:51.7]} 33... Kf4 {[%clk 0:01:44.1]} 34. Ng6+
{[%clk 0:00:38.3]} 34... Kg3 {[%clk 0:01:41]} 35. Kf1 {[%clk 0:00:38.5]} 35...
Kf3 {[%clk 0:01:36.6]} 36. Nh4+ {[%clk 0:00:36.9]} 36... Ke4 {[%clk 0:01:36.6]}
37. Rg7 {[%clk 0:00:33.7]} 37... f5 {[%clk 0:01:27.8]} 38. Re7+ {[%clk 0:00:32]}
38... Kf4 {[%clk 0:01:20.2]} 39. Re5 {[%clk 0:00:27]} 39... g3 {[%clk
0:01:19.8]} 40. Nxf5 {[%clk 0:00:21.9]} 40... Ra1+ {[%clk 0:01:15.2]} 41. Kg2
{[%clk 0:00:18.3]} 41... Ra2+ {[%clk 0:01:15.8]} 42. Kg1 {[%clk 0:00:16.5]}
42... Kf3 {[%clk 0:01:15.4]} 43. Re3+ {[%clk 0:00:13.4]} 43... Kf4 {[%clk
0:01:10.2]} 44. Re5 {[%clk 0:00:12.9]} 44... g2 {[%clk 0:01:09.3]} 45. Nh4
{[%clk 0:00:09.6]} 45... Kg3 {[%clk 0:01:07.1]} 46. Nf5+ {[%clk 0:00:09.3]}
46... Kf3 {[%clk 0:01:04.5]} 47. Nh4+ {[%clk 0:00:09.4]} 47... Kg3 {[%clk
0:01:03.5]} 48. Nf5+ {[%clk 0:00:09.6]} 48... Kg4 {[%clk 0:00:58.5]} 49. Ne3+
{[%clk 0:00:08.7]} 49... Kh3 {[%clk 0:00:53.7]} 50. Rh5+ {[%clk 0:00:05]} 50...
Kg3 {[%clk 0:00:54]} 51. Rg5+ {[%clk 0:00:05.2]} 51... Kf3 {[%clk 0:00:54.5]}
52. Nxg2 {[%clk 0:00:05.4]} 52... Ra1+ {[%clk 0:00:54.7]} 53. Kh2 {[%clk
0:00:05.7]} 53... Ke4 {[%clk 0:00:55]} 54. Rg4+ {[%clk 0:00:05.8]} 54... Kd3
{[%clk 0:00:55.6]} 55. Rf4 {[%clk 0:00:04.7]} 55... a5 {[%clk 0:00:54.1]} 56.
Kg3 {[%clk 0:00:05]} 56... a4 {[%clk 0:00:54.5]} 57. Rf8 {[%clk 0:00:02.7]}
57... a3 {[%clk 0:00:54.2]} 58. Ra8 {[%clk 0:00:02.8]} 58... Kxd4 {[%clk
0:00:54.1]} 59. Kf2 {[%clk 0:00:02.3]} 59... Kc3 {[%clk 0:00:51.7]} 60. Ke3
{[%clk 0:00:02]} 60... d4+ {[%clk 0:00:50.7]} 61. Ke2 {[%clk 0:00:02.4]} 61...
Ra2+ {[%clk 0:00:45.1]} 62. Kf3 {[%clk 0:00:02.3]} 62... d3 {[%clk 0:00:45.5]}
63. Ne3 {[%clk 0:00:02.6]} 63... d2 {[%clk 0:00:34.9]} 64. Nd1+ {[%clk
0:00:03.1]} 64... Kc2 {[%clk 0:00:33.6]} 65. Ne3+ {[%clk 0:00:03.7]} 65... Kc1
{[%clk 0:00:32.8]} 66. Rc8+ {[%clk 0:00:04.2]} 66... Kb1 {[%clk 0:00:33]} 67.
Rb8+ {[%clk 0:00:04.3]} 67... Rb2 {[%clk 0:00:33.4]} 68. Ra8 {[%clk 0:00:04.7]}
68... Rb3 {[%clk 0:00:31.2]} 69. Rd8 {[%clk 0:00:03.3]} 69... Kc1 {[%clk
0:00:27.1]} 70. Rc8+ {[%clk 0:00:03.3]} 70... Kb1 {[%clk 0:00:26.6]} 71. Rd8
{[%clk 0:00:03.8]} 71... Rb2 {[%clk 0:00:16]} 72. Ke2 {[%clk 0:00:02.7]} 72...
a2 {[%clk 0:00:16.1]} 73. Ra8 {[%clk 0:00:02.7]} 73... a1=Q {[%clk 0:00:13.1]}
74. Rxa1+ {[%clk 0:00:02.8]} 74... Kxa1 {[%clk 0:00:14]} 75. Nc4 {[%clk
0:00:03.4]} 75... d1=Q+ {[%clk 0:00:08]} 76. Kxd1 {[%clk 0:00:03.3]} 76... Rh2
{[%clk 0:00:08.9]} 77. Nd2 {[%clk 0:00:03.2]} 77... Kb2 {[%clk 0:00:09.8]} 78.
Ke1 {[%clk 0:00:02.2]} 78... Kc3 {[%clk 0:00:09.7]} 79. Nf1 {[%clk 0:00:02.6]}
79... Ra2 {[%clk 0:00:10.3]} 80. Ng3 {[%clk 0:00:02.5]} 80... Kd3 {[%clk
0:00:10.7]} 81. Nf1 {[%clk 0:00:02.8]} 81... Rb2 {[%clk 0:00:11.2]} 82. Ng3
{[%clk 0:00:02]} 82... Ke3 {[%clk 0:00:11]} 83. Nf1+ {[%clk 0:00:02.5]} 83...
Kd3 {[%clk 0:00:11.4]} 84. Ng3 {[%clk 0:00:02.6]} 84... Ra2 {[%clk 0:00:10.6]}
85. Nf1 {[%clk 0:00:02.8]} 85... Rg2 {[%clk 0:00:11.1]} 0-1

[Event "*** Titled Tuesday Blitz"]
[Site "Chess.com"]
[Date "2021.04.06"]
[Round "1"]
[White "if_name_main_a"]
[Black "Meri-Arabidze"]
[Result "0-1"]
[WhiteElo "2342"]
[BlackElo "2641"]
[TimeControl "180+1"]
[EndTime "10:09:32 PDT"]
[Termination "Meri-Arabidze won by checkmate"]

1. c4 {[%clk 0:03:00.9]} 1... e6 {[%clk 0:02:59.9]} 2. Nc3 {[%clk 0:03:01.2]}
2... d5 {[%clk 0:03:00.8]} 3. d4 {[%clk 0:03:01.7]} 3... Nf6 {[%clk 0:03:00.6]}
4. cxd5 {[%clk 0:03:02.2]} 4... exd5 {[%clk 0:03:01]} 5. Bg5 {[%clk 0:03:02.4]}
5... Nbd7 {[%clk 0:03:01.3]} 6. e3 {[%clk 0:03:02.5]} 6... c6 {[%clk 0:03:01.9]}
7. Bd3 {[%clk 0:03:02.6]} 7... Be7 {[%clk 0:03:02.6]} 8. Nge2 {[%clk 0:03:02.3]}
8... Nf8 {[%clk 0:03:03.2]} 9. O-O {[%clk 0:02:58.1]} 9... Ne6 {[%clk
0:03:03.8]} 10. Bh4 {[%clk 0:02:58.1]} 10... O-O {[%clk 0:03:04]} 11. f3 {[%clk
0:02:57]} 11... b5 {[%clk 0:03:02.4]} 12. Bf2 {[%clk 0:02:53.3]} 12... Bd7
{[%clk 0:02:59.1]} 13. Rc1 {[%clk 0:02:50.3]} 13... a6 {[%clk 0:02:58.5]} 14. a4
{[%clk 0:02:46.6]} 14... Rc8 {[%clk 0:02:55.6]} 15. b3 {[%clk 0:02:40]} 15... g6
{[%clk 0:02:51.9]} 16. h3 {[%clk 0:02:34]} 16... b4 {[%clk 0:02:42.3]} 17. Na2
{[%clk 0:02:33.8]} 17... a5 {[%clk 0:02:42.8]} 18. Rb1 {[%clk 0:02:21.5]} 18...
c5 {[%clk 0:02:42.5]} 19. dxc5 {[%clk 0:02:21.6]} 19... Nxc5 {[%clk 0:02:41.6]}
20. Bc2 {[%clk 0:02:21.1]} 20... Re8 {[%clk 0:02:32.9]} 21. Nac1 {[%clk
0:02:20.8]} 21... Bf8 {[%clk 0:02:32.9]} 22. Nd4 {[%clk 0:02:17.4]} 22... Bh6
{[%clk 0:02:32.5]} 23. Re1 {[%clk 0:02:15.9]} 23... Qb6 {[%clk 0:02:23.2]} 24.
Re2 {[%clk 0:01:45.3]} 24... Re7 {[%clk 0:02:22.4]} 25. Qe1 {[%clk 0:01:34.2]}
25... Rce8 {[%clk 0:02:21.9]} 26. Kh1 {[%clk 0:01:33.4]} 26... Qa6 {[%clk
0:02:19]} 27. Rb2 {[%clk 0:01:21.6]} 27... Ne6 {[%clk 0:02:18.6]} 28. Bd3 {[%clk
0:01:19.1]} 28... Qb6 {[%clk 0:02:16.9]} 29. Nb5 {[%clk 0:01:17.6]} 29... Qb8
{[%clk 0:02:11.6]} 30. g4 {[%clk 0:01:05]} 30... Bxb5 {[%clk 0:02:08.8]} 31.
Bxb5 {[%clk 0:01:04.8]} 31... Rc8 {[%clk 0:02:09]} 32. Kg2 {[%clk 0:01:03.2]}
32... d4 {[%clk 0:02:05.8]} 33. Nd3 {[%clk 0:01:00.6]} 33... dxe3 {[%clk
0:02:05.5]} 34. Bxe3 {[%clk 0:01:01.1]} 34... Bxe3 {[%clk 0:02:03.9]} 35. Rxe3
{[%clk 0:01:01.4]} 35... Rec7 {[%clk 0:01:57.3]} 36. Bc4 {[%clk 0:01:01.6]}
36... Nd4 {[%clk 0:01:41.7]} 37. Re5 {[%clk 0:01:01.9]} 37... Nc6 {[%clk
0:01:37.1]} 38. Rb5 {[%clk 0:01:01.2]} 38... Qa7 {[%clk 0:01:34.3]} 39. Rc5
{[%clk 0:00:59.7]} 39... Kg7 {[%clk 0:01:28.4]} 40. Qf2 {[%clk 0:00:58.1]} 40...
Qb7 {[%clk 0:01:25.3]} 41. Re2 {[%clk 0:00:57.7]} 41... Rd8 {[%clk 0:01:20.6]}
42. Rb5 {[%clk 0:00:57.1]} 42... Qc8 {[%clk 0:01:19.5]} 43. Ne5 {[%clk
0:00:51.4]} 43... Nxe5 {[%clk 0:01:14.6]} 44. Rbxe5 {[%clk 0:00:52.3]} 44...
Rcd7 {[%clk 0:01:13.2]} 45. Re7 {[%clk 0:00:52.1]} 45... Rxe7 {[%clk 0:01:07.8]}
46. Rxe7 {[%clk 0:00:53]} 46... Rd7 {[%clk 0:01:08.7]} 47. Qe3 {[%clk
0:00:45.8]} 47... Qc7 {[%clk 0:01:04.9]} 48. Rxd7 {[%clk 0:00:45.3]} 48... Qxd7
{[%clk 0:01:05.8]} 49. Qe5 {[%clk 0:00:45.1]} 49... h6 {[%clk 0:00:59.9]} 50. h4
{[%clk 0:00:43.9]} 50... Qd2+ {[%clk 0:00:58.4]} 51. Kg3 {[%clk 0:00:43.6]}
51... g5 {[%clk 0:00:54.3]} 52. hxg5 {[%clk 0:00:43.7]} 52... hxg5 {[%clk
0:00:47.3]} 53. Qe7 {[%clk 0:00:37.4]} 53... Qf4+ {[%clk 0:00:45.8]} 54. Kg2
{[%clk 0:00:37.5]} 54... Ng8 {[%clk 0:00:43.4]} 55. Qa7 {[%clk 0:00:34.8]} 55...
Nh6 {[%clk 0:00:27.4]} 56. Qxa5 {[%clk 0:00:32.3]} 56... Qd2+ {[%clk 0:00:24.7]}
57. Kg3 {[%clk 0:00:31.6]} 57... Qe1+ {[%clk 0:00:24.6]} 58. Kg2 {[%clk
0:00:31.3]} 58... Qd2+ {[%clk 0:00:24.4]} 59. Kh3 {[%clk 0:00:25.5]} 59... Qe3
{[%clk 0:00:24.5]} 60. Qd5 {[%clk 0:00:21.3]} 60... Qc1 {[%clk 0:00:22.3]} 61.
Kg2 {[%clk 0:00:17.8]} 61... Qb2+ {[%clk 0:00:20.3]} 62. Kg3 {[%clk 0:00:17.5]}
62... Qc1 {[%clk 0:00:20.6]} 63. Kg2 {[%clk 0:00:15.7]} 63... Qb2+ {[%clk
0:00:20.5]} 64. Kg3 {[%clk 0:00:15.7]} 64... Qc1 {[%clk 0:00:21.2]} 65. Kf2
{[%clk 0:00:16]} 65... Qb2+ {[%clk 0:00:20.6]} 66. Be2 {[%clk 0:00:16.2]} 66...
Qc3 {[%clk 0:00:18.6]} 67. a5 {[%clk 0:00:14.9]} 67... Qa1 {[%clk 0:00:13.6]}
68. Qxg5+ {[%clk 0:00:14.1]} 68... Kh7 {[%clk 0:00:13.1]} 69. Bd3+ {[%clk
0:00:14.2]} 69... f5 {[%clk 0:00:12.9]} 70. Bxf5+ {[%clk 0:00:12.7]} 70... Nxf5
{[%clk 0:00:12.3]} 71. Qxf5+ {[%clk 0:00:13.4]} 71... Kg7 {[%clk 0:00:12.7]} 72.
Kg3 {[%clk 0:00:12.1]} 72... Qg1+ {[%clk 0:00:11.8]} 73. Kf4 {[%clk 0:00:12.6]}
73... Qc1+ {[%clk 0:00:10.9]} 74. Ke4 {[%clk 0:00:12.9]} 74... Qc2+ {[%clk
0:00:10.8]} 75. Kd5 {[%clk 0:00:12.9]} 75... Qxb3+ {[%clk 0:00:11.1]} 76. Kc5
{[%clk 0:00:13]} 76... Qc3+ {[%clk 0:00:11.4]} 77. Kb5 {[%clk 0:00:13.5]} 77...
b3 {[%clk 0:00:11.9]} 78. a6 {[%clk 0:00:13]} 78... b2 {[%clk 0:00:12.1]} 79. a7
{[%clk 0:00:13.1]} 79... Qb3+ {[%clk 0:00:12.2]} 80. Ka6 {[%clk 0:00:13.5]}
80... Qa2+ {[%clk 0:00:11.5]} 81. Kb7 {[%clk 0:00:13.8]} 81... b1=Q+ {[%clk
0:00:11.8]} 82. Qxb1 {[%clk 0:00:14.2]} 82... Qxb1+ {[%clk 0:00:12.5]} 83. Ka8
{[%clk 0:00:15.1]} 83... Qd3 {[%clk 0:00:11.5]} 84. f4 {[%clk 0:00:15.3]} 84...
Qe4+ {[%clk 0:00:11.4]} 85. Kb8 {[%clk 0:00:15.6]} 85... Qxf4+ {[%clk
0:00:11.8]} 86. Kc8 {[%clk 0:00:15.4]} 86... Qa4 {[%clk 0:00:11.5]} 87. Kb8
{[%clk 0:00:15]} 87... Qb5+ {[%clk 0:00:11.5]} 88. Ka8 {[%clk 0:00:15.5]} 88...
Qc6+ {[%clk 0:00:10.2]} 89. Kb8 {[%clk 0:00:15.6]} 89... Qb6+ {[%clk 0:00:10.3]}
90. Ka8 {[%clk 0:00:16.1]} 90... Qc7 {[%clk 0:00:10.4]} 91. g5 {[%clk
0:00:16.1]} 91... Qc8# {[%clk 0:00:10.4]} 0-1